[Event "Early-Titled-Tuesday-Blitz-November-28-2023"]
[Site "Chess.com"]
[Date "2023.11.28"]
[Round "7"]
[White "viktorskliarov"]
[Black "JimDiGrease"]
[Result "1-0"]
[WhiteElo "2642"]
[BlackElo "2933"]
[TimeControl "180+1"]
[EndTime "9:25:00 PST"]
[Termination "viktorskliarov won by checkmate"]

1. e4 {[%clk 0:03:00.9]} 1... c5 {[%clk 0:03:00.3]} 2. Nf3 {[%clk 0:03:00.8]}
2... e6 {[%clk 0:03:01]} 3. c3 {[%clk 0:03:00.9]} 3... d5 {[%clk 0:03:00]} 4. e5
{[%clk 0:03:01.2]} 4... d4 {[%clk 0:02:59.7]} 5. d3 {[%clk 0:02:57.1]} 5... Nc6
{[%clk 0:02:52.1]} 6. c4 {[%clk 0:02:57.2]} 6... Nge7 {[%clk 0:02:49.6]} 7. Bf4
{[%clk 0:02:55.5]} 7... Ng6 {[%clk 0:02:44.5]} 8. Bg3 {[%clk 0:02:55.2]} 8...
Qc7 {[%clk 0:02:40.7]} 9. Qe2 {[%clk 0:02:54.7]} 9... b6 {[%clk 0:02:39.2]} 10.
h4 {[%clk 0:02:45.7]} 10... h5 {[%clk 0:02:38.9]} 11. Na3 {[%clk 0:02:40.8]}
11... a6 {[%clk 0:02:37.9]} 12. O-O-O {[%clk 0:02:31.6]} 12... Be7 {[%clk
0:02:31.4]} 13. Kb1 {[%clk 0:02:28.1]} 13... Bb7 {[%clk 0:02:25.1]} 14. Re1
{[%clk 0:02:23.7]} 14... b5 {[%clk 0:02:24]} 15. Qd2 {[%clk 0:02:07.9]} 15...
Qb6 {[%clk 0:02:16.8]} 16. Be2 {[%clk 0:01:48.7]} 16... Na5 {[%clk 0:02:13.2]}
17. Bd1 {[%clk 0:01:38.6]} 17... bxc4 {[%clk 0:02:07.9]} 18. Nxc4 {[%clk
0:01:38.2]} 18... Nxc4 {[%clk 0:02:07.8]} 19. dxc4 {[%clk 0:01:39.1]} 19... Bc6
{[%clk 0:02:05]} 20. Ng5 {[%clk 0:01:28.6]} 20... Rb8 {[%clk 0:01:57.9]} 21. Ne4
{[%clk 0:01:08.3]} 21... Bxe4+ {[%clk 0:01:26.4]} 22. Rxe4 {[%clk 0:01:07.6]}
22... Bd8 {[%clk 0:01:26.2]} 23. Ba4+ {[%clk 0:00:51.9]} 23... Kf8 {[%clk
0:01:25.7]} 24. Bf4 {[%clk 0:00:35.4]} 24... Ne7 {[%clk 0:01:25.9]} 25. Bg5
{[%clk 0:00:30.9]} 25... Nf5 {[%clk 0:01:26.2]} 26. g4 {[%clk 0:00:26.2]} 26...
hxg4 {[%clk 0:01:22.6]} 27. Rxg4 {[%clk 0:00:26.2]} 27... Bxg5 {[%clk
0:01:20.8]} 28. Rxg5 {[%clk 0:00:24.6]} 28... Qb4 {[%clk 0:01:17.6]} 29. Qxb4
{[%clk 0:00:19.1]} 29... Rxb4 {[%clk 0:01:18.5]} 30. Bc2 {[%clk 0:00:19.3]}
30... Rxh4 {[%clk 0:01:16.1]} 31. Rxh4 {[%clk 0:00:15.8]} 31... Nxh4 {[%clk
0:01:17]} 32. a3 {[%clk 0:00:07.2]} 32... Rxc4 {[%clk 0:01:00.3]} 33. Rh5 {[%clk
0:00:05.3]} 33... Nf3 {[%clk 0:00:59.3]} 34. Bd3 {[%clk 0:00:03.8]} 34... Nd2+
{[%clk 0:00:59.4]} 35. Ka2 {[%clk 0:00:04.4]} 35... Rc1 {[%clk 0:01:00.1]} 36.
Bxa6 {[%clk 0:00:04.7]} 36... c4 {[%clk 0:00:57.7]} 37. Bb5 {[%clk 0:00:03.7]}
37... c3 {[%clk 0:00:56.4]} 38. Rh8+ {[%clk 0:00:03.4]} 38... Ke7 {[%clk
0:00:17.9]} 39. Re8# {[%clk 0:00:04.3]} 1-0

[Event "Early-Titled-Tuesday-Blitz-November-28-2023"]
[Site "Chess.com"]
[Date "2023.11.28"]
[Round "7"]
[White "WindWhistler11"]
[Black "LileKoridze"]
[Result "1-0"]
[WhiteElo "2562"]
[BlackElo "2380"]
[TimeControl "180+1"]
[EndTime "9:25:00 PST"]
[Termination "WindWhistler11 won by resignation"]

1. e4 {[%clk 0:02:59.7]} 1... c5 {[%clk 0:02:59.4]} 2. a3 {[%clk 0:02:57.8]}
2... d6 {[%clk 0:02:59.1]} 3. b4 {[%clk 0:02:57.3]} 3... cxb4 {[%clk 0:02:59.3]}
4. axb4 {[%clk 0:02:58.2]} 4... Nf6 {[%clk 0:02:57.4]} 5. Qf3 {[%clk 0:02:48.4]}
5... Nc6 {[%clk 0:02:49.5]} 6. c3 {[%clk 0:02:44.6]} 6... Bd7 {[%clk 0:02:45.7]}
7. h3 {[%clk 0:02:40]} 7... a6 {[%clk 0:02:45]} 8. Qe3 {[%clk 0:02:35.6]} 8...
Rc8 {[%clk 0:02:42.5]} 9. d4 {[%clk 0:02:27.4]} 9... e6 {[%clk 0:02:40.3]} 10.
Nf3 {[%clk 0:02:17.2]} 10... Qc7 {[%clk 0:02:37.4]} 11. Bd2 {[%clk 0:02:10.6]}
11... d5 {[%clk 0:02:20.6]} 12. e5 {[%clk 0:02:06.6]} 12... Ne4 {[%clk
0:02:20.4]} 13. Bd3 {[%clk 0:02:07.2]} 13... Nxd2 {[%clk 0:02:19.9]} 14. Nfxd2
{[%clk 0:02:06.1]} 14... Be7 {[%clk 0:02:19.6]} 15. O-O {[%clk 0:02:05.1]} 15...
O-O {[%clk 0:02:18.5]} 16. f4 {[%clk 0:02:05.7]} 16... f6 {[%clk 0:02:18.1]} 17.
Nf3 {[%clk 0:01:49.5]} 17... fxe5 {[%clk 0:02:16.5]} 18. fxe5 {[%clk 0:01:47.3]}
18... Rf7 {[%clk 0:01:48]} 19. Nbd2 {[%clk 0:01:26.8]} 19... Rcf8 {[%clk
0:01:46.9]} 20. Rf2 {[%clk 0:01:24]} 20... Na7 {[%clk 0:01:33.3]} 21. Nb3 {[%clk
0:01:19.3]} 21... Bb5 {[%clk 0:01:31.6]} 22. Bc2 {[%clk 0:01:14.5]} 22... Bd7
{[%clk 0:01:27.4]} 23. Nc5 {[%clk 0:01:12.9]} 23... Nb5 {[%clk 0:01:27.3]} 24.
Qd3 {[%clk 0:01:09.1]} 24... g6 {[%clk 0:01:26.7]} 25. Raf1 {[%clk 0:01:05.1]}
25... b6 {[%clk 0:01:23.3]} 26. Nxd7 {[%clk 0:01:00.5]} 26... Qxd7 {[%clk
0:01:23.3]} 27. Ba4 {[%clk 0:00:51]} 27... Rc8 {[%clk 0:01:13.3]} 28. Nh2 {[%clk
0:00:38.6]} 28... Rxf2 {[%clk 0:01:11.6]} 29. Rxf2 {[%clk 0:00:39.2]} 29... Qc6
{[%clk 0:01:09.3]} 30. Bxb5 {[%clk 0:00:30.2]} 30... axb5 {[%clk 0:01:08.7]} 31.
Rf3 {[%clk 0:00:24]} 31... Qc4 {[%clk 0:01:07.6]} 32. Qd2 {[%clk 0:00:22.4]}
32... Rf8 {[%clk 0:01:06.3]} 33. Rxf8+ {[%clk 0:00:20.8]} 33... Bxf8 {[%clk
0:01:06.4]} 34. Ng4 {[%clk 0:00:21.5]} 34... Bg7 {[%clk 0:01:01.3]} 35. Kh2
{[%clk 0:00:20.8]} 35... Qc7 {[%clk 0:01:00.3]} 36. Qg5 {[%clk 0:00:18.6]} 36...
Qf7 {[%clk 0:00:59.9]} 37. Nf6+ {[%clk 0:00:11.2]} 37... Bxf6 {[%clk 0:00:59.7]}
38. exf6 {[%clk 0:00:12.1]} 38... Qc7+ {[%clk 0:00:58.7]} 39. Qe5 {[%clk
0:00:09.5]} 39... Qf7 {[%clk 0:00:44.8]} 40. Kg3 {[%clk 0:00:09.4]} 40... h6
{[%clk 0:00:44.7]} 41. h4 {[%clk 0:00:09.5]} 41... Kh7 {[%clk 0:00:44.3]} 42.
Kg4 {[%clk 0:00:09]} 42... Qe8 {[%clk 0:00:40.7]} 43. g3 {[%clk 0:00:08.6]}
43... Qf7 {[%clk 0:00:40.5]} 44. Kf4 {[%clk 0:00:06.8]} 44... Qd7 {[%clk
0:00:39.1]} 45. Qb8 {[%clk 0:00:06.1]} 45... e5+ {[%clk 0:00:36.4]} 46. Qxe5
{[%clk 0:00:04.8]} 46... h5 {[%clk 0:00:36.4]} 47. Qe7+ {[%clk 0:00:04.9]} 1-0

[Event "Early-Titled-Tuesday-Blitz-November-28-2023"]
[Site "Chess.com"]
[Date "2023.11.28"]
[Round "7"]
[White "TRadjabov"]
[Black "Grandelicious"]
[Result "0-1"]
[WhiteElo "3019"]
[BlackElo "2944"]
[TimeControl "180+1"]
[EndTime "9:25:01 PST"]
[Termination "Grandelicious won on time"]

1. d4 {[%clk 0:03:00.9]} 1... Nf6 {[%clk 0:03:00.2]} 2. Nf3 {[%clk 0:03:00.9]}
2... g6 {[%clk 0:03:00.3]} 3. Nc3 {[%clk 0:02:59.7]} 3... d5 {[%clk 0:02:57.6]}
4. Bf4 {[%clk 0:02:59.5]} 4... Bg7 {[%clk 0:02:55.9]} 5. e3 {[%clk 0:02:59.7]}
5... c6 {[%clk 0:02:50.3]} 6. Be2 {[%clk 0:02:54.3]} 6... Bg4 {[%clk 0:02:50.4]}
7. Ne5 {[%clk 0:02:43]} 7... Bxe2 {[%clk 0:02:50.6]} 8. Qxe2 {[%clk 0:02:43.2]}
8... Nbd7 {[%clk 0:02:40.7]} 9. O-O-O {[%clk 0:02:36.3]} 9... Qa5 {[%clk
0:02:38.9]} 10. Kb1 {[%clk 0:02:34.4]} 10... Nxe5 {[%clk 0:02:30.5]} 11. Bxe5
{[%clk 0:02:31.8]} 11... b5 {[%clk 0:02:21.5]} 12. Qe1 {[%clk 0:02:09.7]} 12...
b4 {[%clk 0:02:13.3]} 13. Ne2 {[%clk 0:02:09.5]} 13... Qb5 {[%clk 0:02:13.2]}
14. h4 {[%clk 0:02:04.9]} 14... a5 {[%clk 0:02:06.9]} 15. h5 {[%clk 0:01:57.6]}
15... Nxh5 {[%clk 0:02:05.4]} 16. g4 {[%clk 0:01:37.5]} 16... Bxe5 {[%clk
0:02:01.1]} 17. dxe5 {[%clk 0:01:30.3]} 17... Ng7 {[%clk 0:02:01.5]} 18. f4
{[%clk 0:01:26.8]} 18... Ne6 {[%clk 0:01:36.5]} 19. f5 {[%clk 0:01:25.4]} 19...
Nc5 {[%clk 0:01:32.1]} 20. Nd4 {[%clk 0:01:22.5]} 20... Qb7 {[%clk 0:01:32.3]}
21. Rd2 {[%clk 0:00:59]} 21... O-O-O {[%clk 0:01:20.2]} 22. Rdh2 {[%clk
0:00:57.9]} 22... Rhf8 {[%clk 0:01:20.8]} 23. Rxh7 {[%clk 0:00:56.7]} 23... gxf5
{[%clk 0:01:18.6]} 24. gxf5 {[%clk 0:00:56.2]} 24... Ne4 {[%clk 0:01:18.6]} 25.
Ka1 {[%clk 0:00:50.5]} 25... c5 {[%clk 0:01:14.1]} 26. Nf3 {[%clk 0:00:43.9]}
26... Qd7 {[%clk 0:01:12.1]} 27. R7h5 {[%clk 0:00:20.5]} 27... Rg8 {[%clk
0:01:04.2]} 28. Rg1 {[%clk 0:00:13.3]} 28... Rxg1 {[%clk 0:00:59.9]} 29. Qxg1
{[%clk 0:00:13.3]} 29... Qb5 {[%clk 0:01:00.5]} 30. Qe1 {[%clk 0:00:12.7]} 30...
Rg8 {[%clk 0:00:57.7]} 31. e6 {[%clk 0:00:05.5]} 31... fxe6 {[%clk 0:00:45.5]}
32. fxe6 {[%clk 0:00:06.4]} 32... Rg3 {[%clk 0:00:45.7]} 33. Rf5 {[%clk
0:00:02.1]} 33... Rg2 {[%clk 0:00:41.7]} 34. Rf8+ {[%clk 0:00:02.3]} 34... Kc7
{[%clk 0:00:41.9]} 35. Rf7 {[%clk 0:00:03.2]} 35... Qe2 {[%clk 0:00:21.7]} 36.
Qxe2 {[%clk 0:00:03.1]} 36... Rxe2 {[%clk 0:00:22.6]} 37. a3 {[%clk 0:00:01.6]}
37... Kd6 {[%clk 0:00:21.3]} 38. axb4 {[%clk 0:00:01.6]} 38... axb4 {[%clk
0:00:22.2]} 39. Rf4 {[%clk 0:00:01.4]} 39... Rxc2 {[%clk 0:00:21]} 0-1

[Event "Early-Titled-Tuesday-Blitz-November-28-2023"]
[Site "Chess.com"]
[Date "2023.11.28"]
[Round "7"]
[White "IljaZaragatski"]
[Black "The_Straightforward_Rook"]
[Result "1/2-1/2"]
[WhiteElo "2613"]
[BlackElo "2475"]
[TimeControl "180+1"]
[EndTime "9:25:01 PST"]
[Termination "Game drawn by repetition"]

1. c4 {[%clk 0:03:00.9]} 1... e5 {[%clk 0:02:57]} 2. g3 {[%clk 0:02:59.2]} 2...
Nf6 {[%clk 0:02:55.9]} 3. Bg2 {[%clk 0:02:59]} 3... c6 {[%clk 0:02:55.1]} 4. Nf3
{[%clk 0:02:55]} 4... e4 {[%clk 0:02:55]} 5. Nd4 {[%clk 0:02:54.3]} 5... Qb6
{[%clk 0:02:55.3]} 6. e3 {[%clk 0:02:52.5]} 6... d5 {[%clk 0:02:54.1]} 7. cxd5
{[%clk 0:02:48]} 7... cxd5 {[%clk 0:02:53.8]} 8. d3 {[%clk 0:02:48]} 8... Bb4+
{[%clk 0:02:50.4]} 9. Bd2 {[%clk 0:02:44.9]} 9... O-O {[%clk 0:02:49.2]} 10.
dxe4 {[%clk 0:02:28.6]} 10... Nxe4 {[%clk 0:02:41.2]} 11. O-O {[%clk 0:02:26.3]}
11... Nc6 {[%clk 0:02:35.5]} 12. Bxb4 {[%clk 0:02:04.1]} 12... Qxb4 {[%clk
0:02:32.8]} 13. Qb3 {[%clk 0:01:58.3]} 13... Qxb3 {[%clk 0:02:13.7]} 14. Nxb3
{[%clk 0:01:58.1]} 14... Bf5 {[%clk 0:02:05.8]} 15. Rd1 {[%clk 0:01:49.2]} 15...
Nb4 {[%clk 0:01:49.9]} 16. Nd4 {[%clk 0:01:31]} 16... Bg6 {[%clk 0:01:49.3]} 17.
Nd2 {[%clk 0:01:22]} 17... Rac8 {[%clk 0:01:46.5]} 18. N2b3 {[%clk 0:01:13.1]}
18... Rc4 {[%clk 0:01:23.8]} 19. a3 {[%clk 0:01:12.6]} 19... Nc2 {[%clk
0:01:23.1]} 20. Rac1 {[%clk 0:01:12.1]} 20... Rfc8 {[%clk 0:01:19.3]} 21. Nxc2
{[%clk 0:00:38.7]} 21... Rxc2 {[%clk 0:01:20.2]} 22. f3 {[%clk 0:00:36.2]} 22...
Nf6 {[%clk 0:01:13.1]} 23. Rxc2 {[%clk 0:00:31.8]} 23... Rxc2 {[%clk 0:01:12.6]}
24. Rd2 {[%clk 0:00:31.5]} 24... Rxd2 {[%clk 0:01:01.4]} 25. Nxd2 {[%clk
0:00:31.6]} 25... Kf8 {[%clk 0:01:02.1]} 26. Kf2 {[%clk 0:00:30.7]} 26... Ke7
{[%clk 0:01:02.6]} 27. Nb3 {[%clk 0:00:30.9]} 27... Kd6 {[%clk 0:01:01.4]} 28.
g4 {[%clk 0:00:27.5]} 28... Nd7 {[%clk 0:00:54.4]} 29. Ke2 {[%clk 0:00:18.3]}
29... Ne5 {[%clk 0:00:53.8]} 30. Nd4 {[%clk 0:00:15.4]} 30... Nc6 {[%clk
0:00:50.9]} 31. h4 {[%clk 0:00:13.2]} 31... Nxd4+ {[%clk 0:00:49.7]} 32. exd4
{[%clk 0:00:14.1]} 32... f6 {[%clk 0:00:41.3]} 33. Ke3 {[%clk 0:00:14.5]} 33...
Bc2 {[%clk 0:00:37.3]} 34. Kf4 {[%clk 0:00:14.1]} 34... h6 {[%clk 0:00:35.3]}
35. g5 {[%clk 0:00:14.3]} 35... fxg5+ {[%clk 0:00:34.3]} 36. hxg5 {[%clk
0:00:15.2]} 36... h5 {[%clk 0:00:34.4]} 37. Bh3 {[%clk 0:00:10.9]} 37... g6
{[%clk 0:00:28.9]} 38. Bc8 {[%clk 0:00:09.7]} 38... b6 {[%clk 0:00:28.7]} 39.
Bh3 {[%clk 0:00:06.8]} 39... a5 {[%clk 0:00:27.9]} 40. Bc8 {[%clk 0:00:05.8]}
40... Bd3 {[%clk 0:00:27.2]} 41. Bh3 {[%clk 0:00:06.3]} 41... Bc2 {[%clk
0:00:26.8]} 42. Bc8 {[%clk 0:00:06.1]} 42... Bd3 {[%clk 0:00:26.6]} 43. Bh3
{[%clk 0:00:06.1]} 43... Bc2 {[%clk 0:00:26.2]} 1/2-1/2

[Event "Early-Titled-Tuesday-Blitz-November-28-2023"]
[Site "Chess.com"]
[Date "2023.11.28"]
[Round "7"]
[White "MaxLeto"]
[Black "Good_Knight_Kiss"]
[Result "1-0"]
[WhiteElo "2552"]
[BlackElo "2347"]
[TimeControl "180+1"]
[EndTime "9:25:01 PST"]
[Termination "MaxLeto won on time"]

1. g4 {[%clk 0:03:00.9]} 1... d5 {[%clk 0:02:58.7]} 2. Bg2 {[%clk 0:03:00]} 2...
Bxg4 {[%clk 0:02:57.7]} 3. c4 {[%clk 0:02:59.5]} 3... c6 {[%clk 0:02:58]} 4. Qb3
{[%clk 0:02:45.7]} 4... Qc7 {[%clk 0:02:54.8]} 5. cxd5 {[%clk 0:02:24.7]} 5...
e5 {[%clk 0:02:53.4]} 6. Nc3 {[%clk 0:02:25.6]} 6... Nf6 {[%clk 0:02:49.3]} 7.
h3 {[%clk 0:02:23.2]} 7... Bh5 {[%clk 0:02:45.9]} 8. d3 {[%clk 0:02:12.5]} 8...
Nbd7 {[%clk 0:02:43.7]} 9. dxc6 {[%clk 0:02:06]} 9... bxc6 {[%clk 0:02:43.1]}
10. Be3 {[%clk 0:01:55]} 10... Rb8 {[%clk 0:02:37.5]} 11. Qc2 {[%clk 0:01:46.6]}
11... Qb7 {[%clk 0:02:12.7]} 12. Na4 {[%clk 0:01:37.2]} 12... Bb4+ {[%clk
0:02:06.7]} 13. Kf1 {[%clk 0:01:35.5]} 13... Nd5 {[%clk 0:01:58.1]} 14. Rc1
{[%clk 0:01:14.9]} 14... O-O {[%clk 0:01:32]} 15. a3 {[%clk 0:00:56.6]} 15...
Be7 {[%clk 0:01:23.7]} 16. b4 {[%clk 0:00:45.2]} 16... a5 {[%clk 0:01:17.6]} 17.
bxa5 {[%clk 0:00:23.6]} 17... Bxa3 {[%clk 0:01:15]} 18. Ra1 {[%clk 0:00:23.7]}
18... Bb4 {[%clk 0:00:52.8]} 19. Bd2 {[%clk 0:00:20.4]} 19... Bxd2 {[%clk
0:00:45.6]} 20. Qxd2 {[%clk 0:00:21.3]} 20... Nf4 {[%clk 0:00:39]} 21. Bf3
{[%clk 0:00:16.9]} 21... Bxf3 {[%clk 0:00:26.3]} 22. Nxf3 {[%clk 0:00:17.8]}
22... c5 {[%clk 0:00:22.9]} 23. Kg1 {[%clk 0:00:10.9]} 23... f5 {[%clk
0:00:18.9]} 24. Kh2 {[%clk 0:00:10.7]} 24... Rf6 {[%clk 0:00:17.4]} 25. Rab1
{[%clk 0:00:07.7]} 25... Qa8 {[%clk 0:00:10.9]} 26. Rxb8+ {[%clk 0:00:07]} 26...
Qxb8 {[%clk 0:00:09.2]} 27. Rc1 {[%clk 0:00:06.8]} 27... Rg6 {[%clk 0:00:03.3]}
28. e3 {[%clk 0:00:04.3]} 28... Rg2+ {[%clk 0:00:01.8]} 29. Kh1 {[%clk
0:00:04.3]} 29... e4 {[%clk 0:00:01.9]} 30. dxe4 {[%clk 0:00:02.4]} 30... Nd3
{[%clk 0:00:01.1]} 31. Qxd3 {[%clk 0:00:02.1]} 1-0

[Event "Early-Titled-Tuesday-Blitz-November-28-2023"]
[Site "Chess.com"]
[Date "2023.11.28"]
[Round "7"]
[White "Aleksandar-Topalov"]
[Black "guillembaches"]
[Result "1-0"]
[WhiteElo "2393"]
[BlackElo "2516"]
[TimeControl "180+1"]
[EndTime "9:25:01 PST"]
[Termination "Aleksandar-Topalov won on time"]

1. b3 {[%clk 0:03:00.9]} 1... d5 {[%clk 0:03:00.2]} 2. Bb2 {[%clk 0:03:00.7]}
2... Bf5 {[%clk 0:03:00.8]} 3. Nf3 {[%clk 0:03:00.2]} 3... e6 {[%clk 0:03:01.3]}
4. g3 {[%clk 0:03:00.6]} 4... Nf6 {[%clk 0:03:01.2]} 5. Bg2 {[%clk 0:03:01]}
5... h6 {[%clk 0:03:01.6]} 6. O-O {[%clk 0:03:01.2]} 6... Nbd7 {[%clk
0:03:01.4]} 7. d3 {[%clk 0:03:01.5]} 7... c6 {[%clk 0:03:01.6]} 8. Nbd2 {[%clk
0:03:01.7]} 8... Bh7 {[%clk 0:03:01.5]} 9. a3 {[%clk 0:02:57.8]} 9... a5 {[%clk
0:03:00.2]} 10. Kh1 {[%clk 0:02:53.7]} 10... Bd6 {[%clk 0:02:55.5]} 11. e4
{[%clk 0:02:53.4]} 11... Qc7 {[%clk 0:02:44.5]} 12. Qe2 {[%clk 0:02:52.9]} 12...
dxe4 {[%clk 0:02:35.1]} 13. dxe4 {[%clk 0:02:52.7]} 13... e5 {[%clk 0:02:26.4]}
14. Nc4 {[%clk 0:02:49.9]} 14... O-O {[%clk 0:02:20.9]} 15. Nxd6 {[%clk
0:02:41.1]} 15... Qxd6 {[%clk 0:02:20.3]} 16. Rfd1 {[%clk 0:02:40.5]} 16... Qe7
{[%clk 0:02:18]} 17. Nh4 {[%clk 0:02:40]} 17... Rad8 {[%clk 0:02:09.1]} 18. Nf5
{[%clk 0:02:30.6]} 18... Bxf5 {[%clk 0:02:08.5]} 19. exf5 {[%clk 0:02:30.7]}
19... Rfe8 {[%clk 0:02:08.8]} 20. a4 {[%clk 0:02:27.3]} 20... Nc5 {[%clk
0:01:43.1]} 21. Bc3 {[%clk 0:02:19.8]} 21... Qc7 {[%clk 0:01:35.8]} 22. Qc4
{[%clk 0:02:11.3]} 22... Nfd7 {[%clk 0:01:23.8]} 23. f6 {[%clk 0:01:52.8]} 23...
gxf6 {[%clk 0:01:19.2]} 24. Qh4 {[%clk 0:01:52.4]} 24... Kg7 {[%clk 0:01:16.9]}
25. Bh3 {[%clk 0:01:21.9]} 25... Ne6 {[%clk 0:01:08.4]} 26. Bf5 {[%clk 0:01:16]}
26... Ndf8 {[%clk 0:01:02.8]} 27. Qg4+ {[%clk 0:01:13.3]} 27... Ng6 {[%clk
0:00:56.8]} 28. h4 {[%clk 0:01:08]} 28... Rxd1+ {[%clk 0:00:53]} 29. Rxd1 {[%clk
0:01:06.7]} 29... h5 {[%clk 0:00:49]} 30. Qxh5 {[%clk 0:01:00]} 30... Rd8 {[%clk
0:00:48.9]} 31. Re1 {[%clk 0:00:57.5]} 31... Qd6 {[%clk 0:00:43.4]} 32. Qg4
{[%clk 0:00:48]} 32... Rh8 {[%clk 0:00:42.3]} 33. Kg1 {[%clk 0:00:45.2]} 33...
Kf8 {[%clk 0:00:42.4]} 34. Bxg6 {[%clk 0:00:33]} 34... fxg6 {[%clk 0:00:41.8]}
35. Qxg6 {[%clk 0:00:30.6]} 35... Qe7 {[%clk 0:00:40.7]} 36. Bxe5 {[%clk
0:00:24.7]} 36... fxe5 {[%clk 0:00:27]} 37. Rxe5 {[%clk 0:00:23.8]} 37... Nd8
{[%clk 0:00:17.7]} 38. Rxe7 {[%clk 0:00:22.9]} 38... Kxe7 {[%clk 0:00:18.6]} 39.
Qg5+ {[%clk 0:00:20.3]} 1-0

[Event "Early-Titled-Tuesday-Blitz-November-28-2023"]
[Site "Chess.com"]
[Date "2023.11.28"]
[Round "7"]
[White "kunaevchess"]
[Black "deepfear"]
[Result "1/2-1/2"]
[WhiteElo "2234"]
[BlackElo "1923"]
[TimeControl "180+1"]
[EndTime "9:25:02 PST"]
[Termination "Game drawn by stalemate"]

1. e4 {[%clk 0:03:00]} 1... c5 {[%clk 0:02:59.8]} 2. Nf3 {[%clk 0:02:57.8]} 2...
g6 {[%clk 0:02:58]} 3. d4 {[%clk 0:02:56.9]} 3... cxd4 {[%clk 0:02:57]} 4. Qxd4
{[%clk 0:02:54.3]} 4... Nf6 {[%clk 0:02:56]} 5. Nc3 {[%clk 0:02:53.9]} 5... Nc6
{[%clk 0:02:55.5]} 6. Qd3 {[%clk 0:02:54.2]} 6... Bg7 {[%clk 0:02:48.2]} 7. Be2
{[%clk 0:02:51.6]} 7... O-O {[%clk 0:02:37]} 8. O-O {[%clk 0:02:51.1]} 8... d6
{[%clk 0:02:31]} 9. Nd5 {[%clk 0:02:49.5]} 9... Bg4 {[%clk 0:02:09.3]} 10. c3
{[%clk 0:02:47.4]} 10... Bxf3 {[%clk 0:02:02.1]} 11. Qxf3 {[%clk 0:02:46.5]}
11... Ne5 {[%clk 0:02:00.8]} 12. Nxf6+ {[%clk 0:02:46.1]} 12... Bxf6 {[%clk
0:02:00.2]} 13. Qg3 {[%clk 0:02:46.8]} 13... Rc8 {[%clk 0:01:49.9]} 14. f4
{[%clk 0:02:46.2]} 14... Nc4 {[%clk 0:01:48.6]} 15. Bxc4 {[%clk 0:02:34.3]}
15... Rxc4 {[%clk 0:01:47.6]} 16. Be3 {[%clk 0:02:34.6]} 16... Rxe4 {[%clk
0:01:39.1]} 17. Qf3 {[%clk 0:02:31.4]} 17... d5 {[%clk 0:01:30]} 18. Bxa7 {[%clk
0:02:28.1]} 18... Qc7 {[%clk 0:01:14]} 19. Be3 {[%clk 0:02:24.7]} 19... e6
{[%clk 0:01:04.4]} 20. a4 {[%clk 0:02:23.8]} 20... Ra8 {[%clk 0:01:03.4]} 21.
Qf2 {[%clk 0:02:12.7]} 21... Rexa4 {[%clk 0:00:56.1]} 22. Rxa4 {[%clk 0:02:08]}
22... Rxa4 {[%clk 0:00:57]} 23. Bb6 {[%clk 0:02:07.9]} 23... Qc6 {[%clk
0:00:51.1]} 24. g3 {[%clk 0:02:00]} 24... Ra6 {[%clk 0:00:48.6]} 25. Bd4 {[%clk
0:01:56.7]} 25... Bxd4 {[%clk 0:00:44]} 26. Qxd4 {[%clk 0:01:57.6]} 26... Qb6
{[%clk 0:00:41.6]} 27. Qxb6 {[%clk 0:01:52.9]} 27... Rxb6 {[%clk 0:00:42.5]} 28.
b4 {[%clk 0:01:53.4]} 28... Rc6 {[%clk 0:00:41.1]} 29. Rc1 {[%clk 0:01:49.5]}
29... d4 {[%clk 0:00:41.1]} 30. c4 {[%clk 0:01:47.7]} 30... f6 {[%clk
0:00:31.6]} 31. Kf2 {[%clk 0:01:46.9]} 31... e5 {[%clk 0:00:31.6]} 32. fxe5
{[%clk 0:01:46]} 32... fxe5 {[%clk 0:00:32.5]} 33. Kf3 {[%clk 0:01:46.2]} 33...
Kf7 {[%clk 0:00:32.8]} 34. Ke4 {[%clk 0:01:46.3]} 34... Ke6 {[%clk 0:00:32.8]}
35. c5 {[%clk 0:01:43.4]} 35... Rc8 {[%clk 0:00:17.3]} 36. b5 {[%clk 0:01:42.7]}
36... h5 {[%clk 0:00:15.7]} 37. c6 {[%clk 0:01:41.1]} 37... bxc6 {[%clk
0:00:15.6]} 38. bxc6 {[%clk 0:01:40.9]} 38... Kd6 {[%clk 0:00:16.1]} 39. c7
{[%clk 0:01:39.8]} 39... Rxc7 {[%clk 0:00:16.2]} 40. Rf1 {[%clk 0:01:36.7]}
40... Ke6 {[%clk 0:00:16]} 41. Ra1 {[%clk 0:01:36.1]} 41... Rc6 {[%clk
0:00:15.6]} 42. Ra8 {[%clk 0:01:35.9]} 42... Rd6 {[%clk 0:00:15.4]} 43. Rg8
{[%clk 0:01:35.8]} 43... Kf6 {[%clk 0:00:15]} 44. Re8 {[%clk 0:01:36]} 44... Re6
{[%clk 0:00:13.1]} 45. Rf8+ {[%clk 0:01:36.2]} 45... Kg7 {[%clk 0:00:13.3]} 46.
Ra8 {[%clk 0:01:34.1]} 46... Re7 {[%clk 0:00:12.5]} 47. Ra5 {[%clk 0:01:33.9]}
47... Kf6 {[%clk 0:00:12.4]} 48. Ra6+ {[%clk 0:01:34.2]} 48... Re6 {[%clk
0:00:12.8]} 49. Ra7 {[%clk 0:01:34.5]} 49... g5 {[%clk 0:00:11.5]} 50. h4 {[%clk
0:01:33.3]} 50... gxh4 {[%clk 0:00:09.8]} 51. gxh4 {[%clk 0:01:34.2]} 51... Rd6
{[%clk 0:00:07.7]} 52. Rh7 {[%clk 0:01:33.5]} 52... Kg6 {[%clk 0:00:07.6]} 53.
Re7 {[%clk 0:01:31.2]} 53... Kf6 {[%clk 0:00:06.1]} 54. Rxe5 {[%clk 0:01:30.6]}
54... d3 {[%clk 0:00:04.9]} 55. Rf5+ {[%clk 0:01:30.7]} 55... Ke6 {[%clk
0:00:04.7]} 56. Rf1 {[%clk 0:01:29.2]} 56... d2 {[%clk 0:00:03.7]} 57. Rd1
{[%clk 0:01:29]} 57... Rd8 {[%clk 0:00:02.7]} 58. Ke3 {[%clk 0:01:21.5]} 58...
Kf6 {[%clk 0:00:03.2]} 59. Rxd2 {[%clk 0:01:19.7]} 59... Rxd2 {[%clk 0:00:04.1]}
60. Kxd2 {[%clk 0:01:20]} 60... Kf5 {[%clk 0:00:04.9]} 61. Ke3 {[%clk
0:01:20.4]} 61... Kg4 {[%clk 0:00:05.8]} 62. Ke4 {[%clk 0:01:20.9]} 62... Kxh4
{[%clk 0:00:06.7]} 63. Kf4 {[%clk 0:01:21.3]} 63... Kh3 {[%clk 0:00:07.3]} 64.
Kf3 {[%clk 0:01:21.7]} 64... h4 {[%clk 0:00:07.6]} 65. Kf2 {[%clk 0:01:21.8]}
65... Kh2 {[%clk 0:00:08.2]} 66. Kf1 {[%clk 0:01:19.9]} 66... h3 {[%clk
0:00:09.1]} 67. Kf2 {[%clk 0:01:20.1]} 67... Kh1 {[%clk 0:00:10]} 68. Kf1 {[%clk
0:01:20.3]} 68... h2 {[%clk 0:00:10.9]} 69. Kf2 {[%clk 0:01:20.1]} 1/2-1/2